bitfinex/quotes_BTCUSD_20250205
["timestamp","ask_amount","ask_price","bid_price","bid_amount"]
[1738713779229,0.42968989,97877.0,97876.0,0.30869273]
[1738713779533,0.122626,97858.0,97857.0,0.01012541]
[1738713781508,0.14159581,97859.0,97858.0,0.01012541]
[1738713781720,0.14159581,97859.0,97858.0,0.11251047]
[1738713781953,0.13364152,97859.0,97858.0,0.00012541]
[1738713782156,0.13364152,97859.0,97852.0,0.26782473]
[1738713782157,0.163504,97857.0,97852.0,0.26782473]
[1738713782329,0.122632,97853.0,97852.0,0.26782473]
[1738713782532,0.272632,97853.0,97852.0,0.26782473]
[1738713782740,0.39201886,97853.0,97852.0,0.26782473]
[1738713782932,0.29160281,97853.0,97852.0,0.26782473]
[1738713783138,0.29160281,97853.0,97852.0,0.26795014]
[1738713783553,0.29160281,97853.0,97852.0,0.3803352]
[1738713783554,0.14160281,97853.0,97852.0,0.3803352]
[1738713784233,0.01897081,97853.0,97852.0,0.3803352]
[1738713784457,0.01897081,97853.0,97852.0,0.9215352]
[1738713784868,0.01897081,97853.0,97852.0,0.92140979]
[1738713785069,0.01897081,97853.0,97852.0,0.81915014]
[1738713785489,0.01897081,97853.0,97852.0,0.9215352]
[1738713785706,0.01897081,97853.0,97852.0,0.9225352]
[1738713786093,0.01897081,97853.0,97852.0,0.9215352]
[1738713786498,0.01897081,97855.0,97854.0,0.01012541]
[1738713786814,0.01897081,97855.0,97854.0,0.11251047]
[1738713787465,0.01897081,97855.0,97854.0,0.9215352]
[1738713787669,0.01897081,97855.0,97854.0,0.80915014]
[1738713787821,0.01897081,97855.0,97854.0,0.81915014]
[1738713788200,0.06583119,97855.0,97854.0,0.26782473]
[1738713788527,0.24619253,97855.0,97854.0,0.26782473]
[1738713788924,0.24619253,97855.0,97854.0,0.26882473]
[1738713789286,0.24619253,97855.0,97854.0,0.26782473]
[1738713789922,0.19933215,97855.0,97854.0,0.26782473]
[1738713790319,0.20033215,97855.0,97854.0,0.26782473]
[1738713791388,0.22333215,97855.0,97854.0,0.26782473]
[1738713791612,0.32571721,97855.0,97854.0,0.26782473]
[1738713791815,0.40561721,97855.0,97854.0,0.22184602]
[1738713792015,0.272654,97836.0,97835.0,0.22184602]
[1738713792299,0.295654,97836.0,97835.0,0.22184602]
[1738713792466,0.295654,97836.0,97835.0,0.18027]
[1738713792677,0.39803906,97836.0,97835.0,0.18027]
[1738713793255,0.4332385,97836.0,97835.0,0.18027]
[1738713793461,0.48257065,97836.0,97835.0,0.18041067]
[1738713793671,0.51428296,97836.0,97835.0,0.00014067]
[1738713794211,0.48308352,97836.0,97835.0,0.00014067]
[1738713794413,0.44837121,97836.0,97835.0,0.00014067]
[1738713794948,0.44737121,97836.0,97835.0,0.00014067]
[1738713795070,0.48008869,97836.0,97835.0,0.00014067]
[1738713795713,0.48008869,97836.0,97835.0,6.7e-07]
[1738713795714,0.60378869,97836.0,97835.0,6.7e-07]
[1738713795918,0.68850436,97836.0,97835.0,6.7e-07]
[1738713796385,0.61951084,97836.0,97835.0,6.7e-07]
[1738713796831,0.37042578,97836.0,97835.0,6.7e-07]
[1738713797079,0.3387083,97836.0,97835.0,6.7e-07]
[1738713797259,0.35148415,97836.0,97835.0,0.00010747]
[1738713797599,0.34748415,97836.0,97835.0,0.00010747]
[1738713797746,0.34648415,97836.0,97835.0,0.00010747]
[1738713797947,0.41383936,97836.0,97835.0,0.00010747]
[1738713798179,0.43683936,97836.0,97835.0,0.00010747]
[1738713798523,0.42406351,97836.0,97835.0,0.00010747]
[1738713798672,0.3567083,97836.0,97835.0,0.00010747]
[1738713799061,0.3347083,97836.0,97835.0,0.00023288]
[1738713799451,0.3337083,97836.0,97835.0,0.00023288]
[1738713799626,0.3347083,97836.0,97835.0,0.00023288]
[1738713800213,0.3357083,97836.0,97835.0,0.00023288]
[1738713800390,0.3357083,97836.0,97835.0,0.00010747]
[1738713800586,0.42498593,97836.0,97835.0,0.00010747]
[1738713801925,0.43776026,97836.0,97835.0,0.00010747]
[1738713802887,0.46942878,97836.0,97835.0,0.00010747]
[1738713803031,0.52873878,97836.0,97835.0,0.00010747]
[1738713803232,0.46842878,97836.0,97835.0,0.00010747]
[1738713803661,0.40215115,97836.0,97835.0,0.00010747]
[1738713805135,0.50453621,97836.0,97835.0,0.00010747]
[1738713805337,0.50453621,97836.0,97832.0,0.0001068]
[1738713805338,0.15,97833.0,97832.0,0.0001068]
[1738713805514,0.15,97833.0,97815.0,0.11894147]
[1738713805515,0.122679,97816.0,97815.0,0.11894147]
[1738713805768,0.295679,97816.0,97815.0,0.11894147]
[1738713805951,0.3252469,97816.0,97815.0,0.11894147]
[1738713806339,0.42763196,97816.0,97815.0,0.11894147]
[1738713806540,0.4398089,97816.0,97815.0,0.11894147]
[1738713806949,0.410241,97816.0,97815.0,0.11894147]
[1738713807147,0.36996242,97816.0,97815.0,0.11894147]
[1738713807350,0.36996242,97816.0,97815.0,0.07294002]
[1738713808145,0.47334748,97816.0,97815.0,0.07294002]
[1738713808347,0.46117054,97816.0,97815.0,0.07294002]
[1738713808550,0.46117054,97816.0,97794.0,0.08187536]
[1738713808551,0.272705,97795.0,97794.0,0.08187536]
[1738713808933,0.122714,97788.0,97787.0,0.07294002]
[1738713809134,0.272723,97781.0,97780.0,0.08187536]
[1738713809359,0.15,97780.0,97779.0,0.07294002]
[1738713809558,0.2099975,97780.0,97779.0,0.07294002]
[1738713809872,0.2099975,97780.0,97779.0,0.07340911]
[1738713810087,0.15,97780.0,97779.0,0.07340911]
[1738713810226,0.04933215,97780.0,97779.0,0.07340911]
[1738713811127,0.04933215,97780.0,97779.0,0.08353452]
[1738713811346,0.04933215,97780.0,97779.0,0.92974458]
[1738713811559,0.04933215,97780.0,97779.0,0.97934458]
[1738713811763,0.00892,97844.0,97821.0,0.01012541]
[1738713812025,0.122665,97827.0,97826.0,0.00012541]
[1738713812229,0.00594397,97836.0,97826.0,0.00012541]
[1738713812230,0.00022428,97836.0,97835.0,0.01]
[1738713812430,0.00022428,97836.0,97835.0,0.74692043]
[1738713812598,0.00022428,97836.0,97835.0,0.87662043]
[1738713812955,0.163471,97877.0,97835.0,0.75396543]
[1738713813091,0.15022428,97876.0,97875.0,0.01012541]
[1738713813310,0.15036484,97876.0,97875.0,0.01012541]
[1738713813725,0.15036484,97876.0,97875.0,0.01]
[1738713814097,0.00036484,97876.0,97875.0,0.01]
[1738713814273,0.163473,97875.0,97872.0,0.01]
[1738713814473,0.122614,97868.0,97867.0,0.54132541]
[1738713814718,0.122614,97868.0,97867.0,0.55132541]
[1738713815294,0.122614,97868.0,97867.0,0.5412]
[1738713815899,0.122614,97868.0,97867.0,0.001]
[1738713815900,0.295614,97868.0,97867.0,0.001]
[1738713816103,0.3405714,97868.0,97867.0,0.001]
[1738713816895,0.295614,97868.0,97867.0,0.001]
[1738713817678,0.122635,97851.0,97850.0,0.01]
[1738713817911,0.122635,97851.0,97849.0,0.00012541]
[1738713818336,0.272635,97851.0,97850.0,0.01]
[1738713820289,0.272635,97851.0,97850.0,0.011]
[1738713820460,0.1635,97859.0,97858.0,0.01012541]
[1738713820604,0.286125,97859.0,97858.0,0.01012541]
[1738713820824,0.12262,97863.0,97862.0,0.01012541]
[1738713821032,0.163473,97875.0,97874.0,0.01012541]
[1738713821457,0.00036484,97876.0,97875.0,0.01012541]
[1738713821662,0.00036484,97876.0,97875.0,0.65493641]
[1738713821874,0.00036484,97876.0,97875.0,0.65371047]
[1738713823516,0.00036484,97876.0,97875.0,0.65471047]
[1738713824165,0.00036484,97876.0,97875.0,0.65571047]
[1738713825299,0.12296884,97876.0,97875.0,0.54332541]
[1738713825499,0.16795892,97876.0,97875.0,0.012]
[1738713825719,0.12296884,97876.0,97875.0,0.012]
[1738713825914,0.12296884,97876.0,97875.0,0.00012541]
[1738713826090,0.12296884,97876.0,97875.0,0.01012541]
[1738713826295,0.12296884,97876.0,97875.0,0.01112541]
[1738713827071,0.12296884,97876.0,97875.0,0.01012541]
[1738713827316,0.12296884,97876.0,97875.0,0.01112541]
[1738713827855,0.12296884,97876.0,97875.0,0.01212541]
[1738713829131,0.12296884,97876.0,97875.0,0.62626543]
[1738713829335,0.12296884,97876.0,97875.0,0.61614002]
[1738713829494,0.16795902,97876.0,97875.0,0.61614002]
[1738713829916,0.12296884,97876.0,97875.0,0.61626543]
[1738713830156,0.12296884,97876.0,97875.0,0.61526543]
[1738713830367,0.12296884,97876.0,97875.0,0.62426543]
[1738713830543,0.12296884,97876.0,97875.0,0.61526543]
[1738713830748,0.12296884,97876.0,97875.0,0.61614002]
[1738713831357,0.12296884,97876.0,97875.0,0.62614002]
[1738713831826,0.12296884,97876.0,97875.0,0.62514002]
[1738713832031,0.12296884,97876.0,97875.0,0.62414002]
[1738713832236,0.12296884,97876.0,97875.0,0.62514002]
[1738713832437,0.12296884,97876.0,97875.0,0.62614002]
[1738713832640,0.12296884,97876.0,97875.0,0.62626543]
[1738713834460,0.00036484,97876.0,97875.0,0.72865049]
[1738713834653,0.00036484,97876.0,97875.0,0.80895049]
[1738713835422,0.00036484,97876.0,97875.0,0.85695049]
[1738713836132,0.00036484,97876.0,97875.0,0.85595049]
[1738713836566,0.00036484,97876.0,97875.0,0.85695049]
[1738713837211,0.00036484,97876.0,97875.0,0.85595049]
[1738713837611,0.00036484,97876.0,97875.0,0.85695049]
[1738713837792,0.00036484,97876.0,97875.0,0.85495049]
[1738713837989,0.00036484,97876.0,97875.0,0.84495049]
[1738713838160,0.00036484,97876.0,97875.0,0.85595049]
[1738713838358,0.00036484,97876.0,97875.0,0.84482508]
[1738713838566,0.00036484,97876.0,97875.0,0.85495049]
[1738713838767,0.00036484,97876.0,97875.0,0.85595049]
[1738713838965,0.00036484,97876.0,97875.0,0.85495049]
[1738713839774,0.00036484,97876.0,97875.0,0.84495049]
[1738713839978,0.12296884,97876.0,97875.0,0.76452508]
[1738713840184,0.12296884,97876.0,97875.0,0.08294002]
[1738713840185,0.15161182,97876.0,97875.0,0.08294002]
[1738713840388,0.21292182,97876.0,97875.0,0.08394002]
[1738713840584,0.21292182,97876.0,97875.0,0.07394002]
[1738713841013,0.18427884,97876.0,97875.0,0.08494002]
[1738713841327,0.18427884,97876.0,97875.0,0.08294002]
[1738713841689,0.19549496,97876.0,97875.0,0.07394002]
[1738713841894,0.37607746,97876.0,97875.0,0.07294002]
[1738713842089,0.56510967,97876.0,97875.0,0.07294002]
[1738713842334,0.356926,97866.0,97865.0,0.07294002]
[1738713842912,0.45931106,97866.0,97865.0,0.07294002]
[1738713843112,0.39800106,97866.0,97865.0,0.07294002]
[1738713843948,0.40558356,97866.0,97865.0,0.07294002]
[1738713844193,0.47883872,97866.0,97865.0,0.07294002]
[1738713844349,0.51046516,97866.0,97865.0,0.07294002]
[1738713844544,0.173,97865.0,97847.0,0.07294002]
[1738713844813,0.295639,97848.0,97847.0,0.07294002]
[1738713844990,0.3252029,97848.0,97847.0,0.07294002]
[1738713845559,0.295639,97848.0,97847.0,0.07294002]
[1738713846365,0.32735921,97848.0,97847.0,0.07294002]
[1738713847223,0.32735921,97848.0,97847.0,0.07394002]
[1738713847423,0.43732677,97848.0,97847.0,0.03206002]
[1738713847650,0.43832677,97848.0,97847.0,0.03206002]
[1738713847823,0.51686225,97848.0,97847.0,0.03206002]
[1738713848055,0.5284375,97848.0,97847.0,0.03206002]
[1738713848257,0.5254375,97848.0,97847.0,0.03206002]
[1738713848584,0.5264375,97848.0,97847.0,0.03206002]
[1738713848904,0.5284375,97848.0,97847.0,0.03206002]
[1738713849109,0.5274375,97848.0,97847.0,0.03206002]
[1738713849896,0.272651,97838.0,97837.0,0.03206002]
[1738713850441,0.29166765,97838.0,97837.0,0.03206002]
[1738713851274,0.35358724,97838.0,97837.0,0.03206002]
[1738713851448,0.35558724,97838.0,97837.0,0.03206002]
[1738713851650,0.36316974,97838.0,97837.0,0.03206002]
[1738713851834,0.15129697,97838.0,97837.0,0.04218543]
[1738713852028,0.02864597,97838.0,97837.0,0.04218543]
[1738713852253,0.02864597,97838.0,97837.0,0.22089691]
[1738713852458,0.02864597,97838.0,97837.0,0.80897049]
[1738713853028,0.00962932,97838.0,97837.0,1.04084585]
[1738713853231,0.0075825,97848.0,97837.0,0.95897049]
[1738713853421,0.00762936,97848.0,97847.0,0.13276541]
[1738713853593,0.00762936,97848.0,97847.0,0.95963657]
[1738713853785,0.00762936,97848.0,97847.0,0.95841049]
[1738713853963,0.09129058,97866.0,97865.0,0.01012541]
[1738713854173,0.09129058,97866.0,97865.0,0.58338543]
[1738713854174,0.09133744,97866.0,97865.0,0.58338543]
[1738713854558,0.00027114,97866.0,97865.0,0.58338543]
[1738713854800,0.00027114,97866.0,97865.0,0.68577049]
[1738713855967,0.00027114,97866.0,97865.0,0.80838749]
[1738713856200,0.00027114,97866.0,97865.0,0.80938749]
[1738713856580,0.00027114,97866.0,97865.0,0.80838749]
[1738713856884,0.00027114,97866.0,97865.0,0.85718749]
[1738713857104,0.00027114,97866.0,97865.0,1.00618749]
[1738713857306,0.122569,97904.0,97875.0,0.28273041]
[1738713857504,0.00022428,97949.0,97875.0,0.28273041]
[1738713857505,0.00022428,97949.0,97875.0,1.08627549]
[1738713857662,0.0910663,97911.0,97875.0,1.95107549]
[1738713858513,0.0910663,97911.0,97875.0,1.96233169]
[1738713858827,0.122564,97908.0,97895.0,0.13270541]
[1738713859027,0.00030115,97896.0,97895.0,0.80957604]
[1738713859256,0.00030115,97896.0,97895.0,0.80835049]
[1738713859939,0.00030115,97896.0,97895.0,0.68577049]
[1738713860362,0.00030115,97896.0,97895.0,0.68677049]
[1738713860771,0.00030115,97896.0,97895.0,0.68777049]
[1738713861200,0.00030115,97896.0,97895.0,0.76457049]
[1738713861977,0.00030115,97896.0,97895.0,0.88715049]
[1738713862618,0.00030115,97896.0,97895.0,0.76457049]
[1738713863153,0.00030115,97896.0,97895.0,0.76557049]
[1738713863317,0.00030115,97896.0,97895.0,0.76357049]
[1738713863496,0.00030115,97896.0,97895.0,0.76457049]
[1738713864121,0.00030115,97896.0,97895.0,0.76557049]
[1738713864496,0.00030115,97896.0,97895.0,0.76357049]
[1738713865080,0.00030115,97896.0,97895.0,0.75457049]
[1738713865282,0.00030115,97896.0,97895.0,0.76457049]
[1738713865481,0.00030115,97896.0,97895.0,0.75457049]
[1738713865700,0.00030115,97896.0,97895.0,0.76457049]
[1738713866039,0.00030115,97896.0,97895.0,0.76357049]
[1738713866445,0.00030115,97896.0,97895.0,0.76457049]
[1738713867064,0.00030115,97896.0,97895.0,0.76557049]
[1738713867475,0.0002245,97906.0,97896.0,0.31446328]
[1738713867651,0.0002245,97906.0,97896.0,0.41684834]
[1738713868264,0.00022428,97916.0,97915.0,0.13268041]
[1738713868468,0.00022428,97916.0,97915.0,0.88644955]
[1738713868753,0.00022428,97916.0,97915.0,0.88522434]
[1738713868955,0.00022428,97916.0,97915.0,1.08482434]
[1738713869473,0.00022428,97916.0,97915.0,1.08469893]
[1738713869669,0.00022428,97916.0,97915.0,1.07482434]
[1738713869953,0.00022428,97916.0,97915.0,0.96226934]
[1738713870164,0.00022428,97916.0,97915.0,0.68546934]
[1738713870343,0.00022428,97916.0,97915.0,0.68634393]
[1738713870344,0.12277828,97916.0,97915.0,0.68634393]
[1738713870526,0.12277828,97916.0,97915.0,0.68546934]
[1738713870895,0.12277828,97916.0,97915.0,0.68646934]
[1738713871292,0.00022428,97916.0,97915.0,0.68546934]
[1738713872149,0.00022428,97916.0,97915.0,0.57308428]
[1738713872665,0.00022428,97916.0,97915.0,0.57408428]
[1738713872839,0.00022428,97916.0,97915.0,0.58408428]
[1738713873017,0.00022428,97916.0,97915.0,0.57308428]
[1738713873223,0.00022428,97916.0,97915.0,0.57408428]
[1738713873620,0.00022428,97916.0,97915.0,0.67646934]
[1738713873821,0.00022428,97916.0,97915.0,0.67746934]
[1738713874301,0.00022428,97916.0,97915.0,0.67546934]
[1738713874426,0.00022428,97916.0,97915.0,0.79902434]
[1738713874825,0.00022428,97916.0,97915.0,1.07412434]
[1738713875267,0.00022428,97934.0,97926.0,0.00012541]
[1738713875477,0.00022428,97934.0,97926.0,0.23627645]
[1738713875478,0.00069316,97927.0,97926.0,0.23627645]
[1738713875671,0.00069316,97927.0,97926.0,0.23505147]
[1738713876506,0.00069316,97927.0,97926.0,0.94778606]
[1738713876687,0.00069316,97927.0,97926.0,1.078515]
[1738713877290,0.00069316,97927.0,97926.0,1.02478606]
[1738713877490,0.00069316,97927.0,97926.0,1.02378606]
[1738713877714,0.00069316,97927.0,97926.0,1.05164659]
[1738713878652,0.00069316,97927.0,97926.0,1.078515]
[1738713878868,0.00069316,97927.0,97926.0,1.05165447]
[1738713879066,0.00069316,97927.0,97926.0,1.0632114]
[1738713879268,0.00069316,97927.0,97926.0,1.04634299]
[1738713879431,0.00022428,97934.0,97931.0,0.28266041]
[1738713879627,0.00036502,97932.0,97931.0,0.38504547]
[1738713881060,0.00036502,97932.0,97931.0,0.38604547]
[1738713881708,0.00036502,97932.0,97931.0,0.38592006]
[1738713881923,0.00036502,97932.0,97931.0,0.25351047]
[1738713882116,0.00036502,97932.0,97931.0,0.11351047]
[1738713882443,0.00036502,97932.0,97931.0,0.27473555]
[1738713882579,0.00022428,97934.0,97933.0,0.02012541]
[1738713882789,0.00022428,97934.0,97933.0,0.27373527]
[1738713882984,0.00022428,97934.0,97933.0,0.27251047]
[1738713886642,0.00022428,97934.0,97933.0,0.27238506]
[1738713886879,0.00022428,97934.0,97933.0,0.26251047]
[1738713887387,0.00022428,97934.0,97933.0,0.25251047]
[1738713887739,0.00022428,97934.0,97933.0,0.26251047]
[1738713888105,0.00022428,97934.0,97933.0,0.25251047]
[1738713888515,0.00022428,97934.0,97933.0,0.8245519]
[1738713888945,0.00022428,97934.0,97933.0,0.8145519]
[1738713889733,0.00022428,97934.0,97933.0,0.8245519]
[1738713890377,0.00022428,97949.0,97948.0,0.01012541]
[1738713890506,0.00022428,97949.0,97948.0,0.2361227]
[1738713890714,0.00022428,97949.0,97948.0,0.23502347]
[1738713891113,0.00022428,97949.0,97948.0,0.39502347]
[1738713891317,0.00022428,97949.0,97948.0,1.89804062]
[1738713892238,0.00022428,97949.0,97948.0,1.93104062]
[1738713893353,0.00022428,97957.0,97956.0,0.02012541]
[1738713893589,0.00022428,97957.0,97956.0,1.8228551]
[1738713893826,0.00022428,97957.0,97956.0,1.82163062]
[1738713894042,0.00022428,97957.0,97956.0,1.81163062]
[1738713894247,0.00022428,97957.0,97956.0,1.80163062]
[1738713894447,0.00022428,97957.0,97956.0,1.81163062]
[1738713894656,0.00022428,97957.0,97956.0,1.80163062]
[1738713895031,0.00022428,97957.0,97956.0,0.79670521]
[1738713895612,0.00022428,97957.0,97956.0,0.79683062]
[1738713897075,0.00022428,97957.0,97956.0,0.66432762]
[1738713897501,0.00022428,97957.0,97956.0,0.57194256]
[1738713897685,0.00022428,97957.0,97956.0,0.56194256]
[1738713898006,0.00022428,97957.0,97956.0,0.56181715]
[1738713898206,0.00022428,97957.0,97956.0,0.56194256]
[1738713898720,0.00022428,97957.0,97956.0,0.57194256]
[1738713898849,0.00022428,97957.0,97956.0,0.56194256]
[1738713899062,0.00022428,97957.0,97956.0,0.57194256]
[1738713899656,0.00022428,97957.0,97956.0,0.67432762]
[1738713900712,0.00022428,97957.0,97956.0,0.75672762]
[1738713900955,0.00022428,97957.0,97956.0,0.90672762]
[1738713902641,0.00022428,97957.0,97956.0,0.91818476]
[1738713903038,0.00022428,97964.0,97963.0,0.04070256]
[1738713903292,0.00036477,97964.0,97963.0,0.41680708]
[1738713903492,0.00036477,97964.0,97963.0,1.29038262]
[1738713904823,0.00036477,97964.0,97963.0,1.28038262]
[1738713905025,0.00036477,97964.0,97963.0,1.32338262]
[1738713905295,7.7e-07,97964.0,97963.0,1.32338262]
[1738713906886,7.7e-07,97964.0,97963.0,1.37028262]
[1738713907555,5.7e-07,97974.0,97973.0,0.40340741]
[1738713907693,5.7e-07,97974.0,97973.0,0.50579247]
[1738713908723,5.7e-07,97974.0,97973.0,0.45279247]
[1738713908928,5.7e-07,97974.0,97973.0,0.45266706]
[1738713909129,5.7e-07,97974.0,97973.0,0.45279247]
[1738713909300,5.7e-07,97974.0,97973.0,0.48279247]
[1738713909852,5.7e-07,97974.0,97973.0,0.45279247]
[1738713910046,5.7e-07,97974.0,97973.0,0.48279247]
[1738713910490,5.7e-07,97974.0,97973.0,0.47279247]
[1738713910631,5.7e-07,97974.0,97973.0,0.48279247]
[1738713910836,5.7e-07,97974.0,97973.0,0.49380563]
[1738713912011,0.00760083,98006.0,97993.0,0.13258241]
[1738713912167,0.00760083,98006.0,97993.0,1.78196732]
[1738713912364,0.00024726,97994.0,97993.0,1.78061778]
[1738713912568,0.00024726,97994.0,97993.0,1.78074319]
[1738713915234,0.00024726,97994.0,97993.0,0.94651977]
[1738713915646,0.00024726,97994.0,97993.0,0.95651977]
[1738713915868,0.00024726,97994.0,97993.0,1.01631977]
[1738713916276,0.00024726,97994.0,97993.0,1.88111977]
[1738713916486,0.00015624,97994.0,97993.0,1.88111977]
[1738713916885,0.00015624,97994.0,97993.0,1.87111977]
[1738713917097,0.00015624,97994.0,97993.0,1.88111977]
[1738713920065,0.00015624,97994.0,97993.0,1.80131977]
[1738713920265,0.00015624,97994.0,97993.0,1.66131977]
[1738713920487,0.00015624,97994.0,97993.0,1.67131977]
[1738713920934,0.00015624,97994.0,97993.0,1.82131977]
[1738713921281,7.878e-05,98011.0,98010.0,0.13256141]
[1738713921483,7.878e-05,98011.0,98010.0,0.2361705]
[1738713921691,7.878e-05,98011.0,98010.0,0.23494647]
[1738713921893,7.878e-05,98011.0,98010.0,0.38494647]
[1738713922308,7.878e-05,98011.0,98010.0,1.81114253]
[1738713923431,7.878e-05,98011.0,98010.0,1.82228404]
[1738713924466,7.878e-05,98011.0,98010.0,1.81101712]
[1738713924672,7.878e-05,98011.0,98010.0,1.66114253]
[1738713925093,7.878e-05,98011.0,98010.0,0.67390653]
[1738713925512,0.04498924,98011.0,98010.0,0.57139606]
[1738713925711,7.878e-05,98011.0,98010.0,0.57139606]
[1738713926744,0.00767183,98011.0,98010.0,0.57139606]
[1738713928814,7.878e-05,98011.0,98010.0,0.82390653]
[1738713929014,7.878e-05,98011.0,98010.0,0.82378112]
[1738713929226,7.878e-05,98011.0,98010.0,0.82390653]
[1738713929822,0.00018558,98011.0,98010.0,0.82390653]
[1738713931938,0.00018558,98011.0,98010.0,0.82801465]
[1738713934550,0.0001068,98014.0,98013.0,0.31279217]
[1738713934756,0.0001068,98014.0,98013.0,1.81095295]
[1738713934948,0.0001068,98014.0,98013.0,1.81481595]
[1738713936746,0.0001068,98014.0,98013.0,1.82601078]
[1738713937953,0.0001068,98014.0,98013.0,1.84602778]
[1738713938997,0.0001068,98025.0,98024.0,0.01]
[1738713939219,0.00057491,98025.0,98024.0,0.23492847]
[1738713939357,0.00057491,98025.0,98024.0,0.23926064]
[1738713942683,0.00057491,98025.0,98024.0,0.40027859]
[1738713942883,0.00057491,98025.0,98024.0,0.41027859]
[1738713943739,0.00057491,98025.0,98024.0,0.39027859]
[1738713943956,0.00057491,98025.0,98024.0,0.22926064]
[1738713944433,0.00057491,98025.0,98024.0,0.23926064]
[1738713944613,0.00057491,98025.0,98024.0,0.22926064]
[1738713945019,0.00057491,98025.0,98024.0,0.80036432]
[1738713945428,0.00057491,98025.0,98024.0,0.67782091]
[1738713945647,0.00057491,98025.0,98024.0,0.67794632]
[1738713945798,0.00057491,98025.0,98024.0,0.67782091]
[1738713946001,0.00057491,98025.0,98024.0,0.67794632]
[1738713946204,0.00057491,98025.0,98024.0,0.66794632]
[1738713946389,0.00057491,98025.0,98024.0,0.57543585]
[1738713946586,0.37373612,98025.0,98024.0,0.56543585]
[1738713946992,0.42850288,98025.0,98024.0,0.03446013]
[1738713947443,0.42850288,98025.0,98024.0,0.03012796]
[1738713947444,0.37586955,98025.0,98024.0,0.03012796]
[1738713948224,0.31455955,98025.0,98024.0,0.03012796]
[1738713948475,0.28279279,98025.0,98024.0,0.03012796]
[1738713949067,0.31454384,98025.0,98024.0,0.03012796]
[1738713949267,0.41602465,98025.0,98024.0,0.03012796]
[1738713949489,0.30579279,98025.0,98024.0,0.03012796]
[1738713949687,0.33754036,98025.0,98024.0,0.03012796]
[1738713950115,0.203338,98008.0,98007.0,0.08187536]
[1738713950289,0.376338,98008.0,98007.0,0.08187536]
[1738713950716,0.376338,98008.0,98005.0,0.01]
[1738713951360,0.376338,98008.0,98007.0,0.01]
[1738713951361,0.08851788,98008.0,98007.0,0.01]
[1738713951482,0.00761788,98008.0,98007.0,0.01012541]
[1738713952091,0.00761788,98008.0,98007.0,0.11691775]
[1738713952766,0.00761788,98008.0,98007.0,0.01440728]
[1738713952910,0.02062347,98008.0,98007.0,0.00440728]
[1738713953108,0.04362347,98008.0,98007.0,0.00440728]
[1738713953313,0.27552347,98008.0,98007.0,0.00440728]
[1738713953601,0.27552347,98008.0,98007.0,0.00609729]
[1738713953602,0.26251788,98008.0,98007.0,0.00609729]
[1738713953729,0.23951788,98008.0,98007.0,0.00609729]
[1738713955773,0.26251788,98008.0,98007.0,0.00609729]
[1738713956948,0.36490294,98008.0,98007.0,0.00609729]
[1738713957354,0.36490294,98008.0,98007.0,0.00022428]
[1738713957581,0.44836256,98008.0,98007.0,0.00022428]
[1738713958832,0.122453,97996.0,97995.0,0.3298]
[1738713959033,0.295453,97996.0,97995.0,0.3298]
[1738713959236,0.295453,97996.0,97995.0,0.33485173]
[1738713959418,0.3576517,97996.0,97995.0,0.3298]
[1738713959608,0.3576517,97996.0,97995.0,0.3408207]
[1738713960214,0.31421317,97996.0,97995.0,0.3408207]
[1738713960422,0.00987459,97993.0,97986.0,0.52470605]
[1738713960733,0.378177,97977.0,97976.0,0.3298]
[1738713961070,0.27248,97975.0,97959.0,0.2906]
[1738713961351,0.27248,97975.0,97960.0,0.01]
[1738713961352,0.272492,97965.0,97960.0,0.01]
[1738713961694,0.122497,97961.0,97960.0,0.01]
[1738713961901,0.122497,97961.0,97960.0,0.01014046]
[1738713962357,0.122497,97961.0,97960.0,0.00014046]
[1738713962614,0.44279676,97961.0,97960.0,0.00014046]
[1738713962830,0.52089676,97961.0,97960.0,0.00014046]
[1738713963321,0.00987459,97956.0,97949.0,0.29082428]
[1738713963521,0.374711,97950.0,97949.0,0.00036477]
[1738713963717,0.374711,97950.0,97910.0,0.08187536]
[1738713963718,0.15,97934.0,97911.0,0.50225379]
[1738713963957,0.220646,97922.0,97921.0,0.08201588]
[1738713964082,0.220646,97922.0,97921.0,0.00014052]
[1738713964519,0.220646,97922.0,97906.0,0.00022428]
[1738713964520,0.122562,97909.0,97906.0,0.00022428]
[1738713964732,0.295562,97909.0,97908.0,0.00069294]
[1738713965045,0.295562,97909.0,97906.0,0.00022428]
[1738713965046,0.122565,97907.0,97906.0,0.00022428]
[1738713965255,0.295565,97907.0,97906.0,0.00022428]
[1738713965855,0.122576,97898.0,97897.0,0.00022428]
[1738713966060,0.122576,97898.0,97897.0,0.01022428]
[1738713966302,0.1675191,97898.0,97897.0,0.00022428]
[1738713967338,0.14152224,97898.0,97897.0,0.00022428]
[1738713968114,0.14914012,97898.0,97897.0,0.00022428]
[1738713968514,0.14914012,97898.0,97897.0,0.01022428]
[1738713968719,0.14914012,97898.0,97897.0,0.01122428]
[1738713968887,0.14914012,97898.0,97897.0,0.01022428]
[1738713969092,0.02656412,97898.0,97897.0,0.01034969]
[1738713969292,0.02656412,97898.0,97897.0,0.01925619]
[1738713969588,0.00761788,97898.0,97897.0,0.01134969]
[1738713969766,0.00761788,97898.0,97897.0,0.11373475]
[1738713969975,0.00761788,97898.0,97897.0,0.12164036]
[1738713970197,0.00761788,97898.0,97897.0,0.95491981]
[1738713970403,0.00761788,97898.0,97897.0,0.95369415]
[1738713971184,0.00046779,97909.0,97908.0,0.132564]
[1738713971397,0.00046779,97909.0,97897.0,0.94369415]
[1738713971398,0.122564,97908.0,97907.0,0.00012541]
[1738713971599,0.00046779,97909.0,97908.0,0.01801782]
[1738713971810,0.00046779,97909.0,97908.0,0.01012541]
[1738713972039,0.00046779,97909.0,97908.0,0.12040288]
[1738713972255,0.00046779,97909.0,97908.0,0.00789241]
[1738713972456,0.01685517,97909.0,97908.0,0.01789241]
[1738713972671,0.01685517,97909.0,97908.0,0.01]
[1738713972868,0.00046779,97909.0,97908.0,0.01]
[1738713973069,0.00046779,97909.0,97908.0,0.01012541]
[1738713973357,0.00046779,97909.0,97908.0,0.12125957]
[1738713973559,0.00046779,97909.0,97908.0,0.01887451]
[1738713973761,0.00046779,97909.0,97908.0,0.0187491]
[1738713973962,0.03100629,97909.0,97908.0,0.011]
[1738713974341,0.00046779,97909.0,97908.0,0.13368941]
[1738713974545,0.00046779,97909.0,97908.0,0.64269783]
[1738713974743,0.00046779,97909.0,97908.0,0.74508289]
[1738713974943,0.00046779,97909.0,97908.0,0.74608289]
[1738713975187,0.00046779,97909.0,97908.0,0.74508289]
[1738713975591,0.00046779,97909.0,97908.0,0.74608289]
[1738713975792,0.00046779,97909.0,97908.0,0.74508289]
[1738713976202,0.00046779,97909.0,97908.0,0.74608289]
[1738713976624,0.00046779,97909.0,97908.0,1.07588289]
[1738713977079,0.00046779,97909.0,97908.0,1.20308289]
[1738713977309,0.00046779,97909.0,97908.0,1.20330717]
[1738713977752,0.00046779,97909.0,97908.0,1.20230717]
[1738713978008,0.00046779,97909.0,97908.0,1.20330717]
[1738713978216,0.00046779,97909.0,97908.0,1.35330717]